[Event "Late-Titled-Tuesday-Blitz-March-26-2024"]
[Site "Chess.com"]
[Date "2024.03.26"]
[Round "9"]
[White "Boundless_Strike"]
[Black "Quattroporte300"]
[Result "1-0"]
[WhiteElo "2620"]
[BlackElo "2482"]
[TimeControl "180+1"]
[EndTime "15:42:00 PDT"]
[Termination "Boundless_Strike won by resignation"]

1. d4 {[%clk 0:03:00.9]} 1... d5 {[%clk 0:02:58.8]} 2. e4 {[%clk 0:03:00.8]}
2... dxe4 {[%clk 0:02:58.4]} 3. Nc3 {[%clk 0:03:01.5]} 3... Nf6 {[%clk
0:02:58.9]} 4. f3 {[%clk 0:03:01.9]} 4... exf3 {[%clk 0:02:58.1]} 5. Nxf3 {[%clk
0:03:02.8]} 5... g6 {[%clk 0:02:51.3]} 6. Bc4 {[%clk 0:02:57.2]} 6... Bg7 {[%clk
0:02:50.4]} 7. h4 {[%clk 0:02:57.7]} 7... a6 {[%clk 0:02:43.5]} 8. Ne5 {[%clk
0:02:45.6]} 8... e6 {[%clk 0:02:39.8]} 9. Be3 {[%clk 0:02:36.5]} 9... b5 {[%clk
0:02:39.2]} 10. Qf3 {[%clk 0:02:30.6]} 10... Ra7 {[%clk 0:02:29.8]} 11. d5
{[%clk 0:02:22]} 11... bxc4 {[%clk 0:02:28.9]} 12. Bxa7 {[%clk 0:02:19.8]} 12...
Bb7 {[%clk 0:02:16.9]} 13. O-O-O {[%clk 0:02:11.7]} 13... exd5 {[%clk
0:02:13.9]} 14. Bc5 {[%clk 0:01:44.5]} 14... Nbd7 {[%clk 0:01:59.1]} 15. Rhe1
{[%clk 0:01:12.7]} 15... Nxe5 {[%clk 0:01:44.7]} 16. Rxe5+ {[%clk 0:01:12.3]}
16... Kd7 {[%clk 0:01:45.3]} 17. Nxd5 {[%clk 0:00:56.9]} 17... Bxd5 {[%clk
0:01:33.9]} 18. Rexd5+ {[%clk 0:00:54.5]} 18... Nxd5 {[%clk 0:01:34]} 19. Qxd5+
{[%clk 0:00:52.2]} 1-0

[Event "Late-Titled-Tuesday-Blitz-March-26-2024"]
[Site "Chess.com"]
[Date "2024.03.26"]
[Round "9"]
[White "KetiTsatsalashvili"]
[Black "Sanyura"]
[Result "0-1"]
[WhiteElo "2457"]
[BlackElo "2595"]
[TimeControl "180+1"]
[EndTime "15:42:04 PDT"]
[Termination "Sanyura won by resignation"]

1. d4 {[%clk 0:03:00.9]} 1... Nf6 {[%clk 0:02:17.9]} 2. Nf3 {[%clk 0:02:56.4]}
2... g6 {[%clk 0:02:17.6]} 3. c4 {[%clk 0:02:55.8]} 3... d6 {[%clk 0:02:17.8]}
4. Nc3 {[%clk 0:02:56.4]} 4... Bg7 {[%clk 0:02:18.5]} 5. e4 {[%clk 0:02:57.1]}
5... O-O {[%clk 0:02:18.5]} 6. Be2 {[%clk 0:02:57.8]} 6... e5 {[%clk 0:02:19]}
7. O-O {[%clk 0:02:57.1]} 7... Nc6 {[%clk 0:02:19.1]} 8. d5 {[%clk 0:02:57.7]}
8... Ne7 {[%clk 0:02:19.3]} 9. Nd2 {[%clk 0:02:58.4]} 9... Ne8 {[%clk
0:02:19.3]} 10. b4 {[%clk 0:02:59]} 10... f5 {[%clk 0:02:19.9]} 11. c5 {[%clk
0:02:59.1]} 11... Rf7 {[%clk 0:02:19.1]} 12. Nc4 {[%clk 0:02:56.8]} 12... f4
{[%clk 0:02:17.1]} 13. Bg4 {[%clk 0:02:56.3]} 13... g5 {[%clk 0:02:17]} 14. Bxc8
{[%clk 0:02:43.4]} 14... Rxc8 {[%clk 0:02:17.9]} 15. f3 {[%clk 0:02:41.6]} 15...
h5 {[%clk 0:02:17.2]} 16. a4 {[%clk 0:02:37.9]} 16... Ng6 {[%clk 0:02:17.4]} 17.
Ba3 {[%clk 0:02:36.8]} 17... g4 {[%clk 0:02:17.1]} 18. fxg4 {[%clk 0:02:35.8]}
18... Qg5 {[%clk 0:02:17.7]} 19. gxh5 {[%clk 0:02:06.5]} 19... Nh4 {[%clk
0:02:17]} 20. Qd2 {[%clk 0:02:06]} 20... Bf8 {[%clk 0:02:11.9]} 21. Nb5 {[%clk
0:01:53.2]} 21... Rg7 {[%clk 0:02:11.3]} 22. Rf2 {[%clk 0:01:44.6]} 22... Nf6
{[%clk 0:02:11.3]} 23. h3 {[%clk 0:01:44]} 23... Nxe4 {[%clk 0:02:11]} 24. Qc2
{[%clk 0:01:38.9]} 24... Nxf2 {[%clk 0:02:10.5]} 25. Qxf2 {[%clk 0:01:39.8]}
25... Qxh5 {[%clk 0:02:07]} 26. g4 {[%clk 0:01:34.6]} 26... fxg3 {[%clk
0:02:06]} 27. Qe3 {[%clk 0:01:25.7]} 27... g2 {[%clk 0:02:02.8]} 28. Nd2 {[%clk
0:01:25.7]} 28... Be7 {[%clk 0:01:55.7]} 29. Nxa7 {[%clk 0:01:21.1]} 29... Rf8
{[%clk 0:01:54.5]} 30. Re1 {[%clk 0:01:00.1]} 30... Bg5 {[%clk 0:01:54.2]} 31.
Qe2 {[%clk 0:00:59.8]} 31... Bxd2 {[%clk 0:01:47.8]} 0-1

[Event "Late-Titled-Tuesday-Blitz-March-26-2024"]
[Site "Chess.com"]
[Date "2024.03.26"]
[Round "9"]
[White "GMG"]
[Black "Heliosis11"]
[Result "1-0"]
[WhiteElo "2800"]
[BlackElo "2351"]
[TimeControl "180+1"]
[EndTime "15:42:06 PDT"]
[Termination "GMG won by resignation"]

1. Nf3 {[%clk 0:03:00.9]} 1... c5 {[%clk 0:02:53.4]} 2. c4 {[%clk 0:03:00.3]}
2... Nf6 {[%clk 0:02:52.1]} 3. d4 {[%clk 0:03:00.7]} 3... cxd4 {[%clk
0:02:44.8]} 4. Nxd4 {[%clk 0:03:01.6]} 4... e6 {[%clk 0:02:45]} 5. Nc3 {[%clk
0:03:00.8]} 5... Bb4 {[%clk 0:02:45]} 6. g3 {[%clk 0:03:00.7]} 6... Qc7 {[%clk
0:02:44.1]} 7. Qb3 {[%clk 0:02:51.9]} 7... Nc6 {[%clk 0:02:38.4]} 8. Nxc6 {[%clk
0:02:43.1]} 8... Qxc6 {[%clk 0:02:36.8]} 9. Qxb4 {[%clk 0:02:39]} 9... Qxh1
{[%clk 0:02:35.6]} 10. Nb5 {[%clk 0:02:39.4]} 10... Ng4 {[%clk 0:01:08.3]} 11.
Nd6+ {[%clk 0:01:59]} 11... Kd8 {[%clk 0:01:07.3]} 12. Nxf7+ {[%clk 0:01:55.9]}
12... Ke8 {[%clk 0:01:07.7]} 13. Nd6+ {[%clk 0:01:53.8]} 13... Kf8 {[%clk
0:00:38.8]} 14. Nf5+ {[%clk 0:01:47]} 14... Kg8 {[%clk 0:00:36.5]} 15. Qe7
{[%clk 0:01:43.8]} 1-0

[Event "Late-Titled-Tuesday-Blitz-March-26-2024"]
[Site "Chess.com"]
[Date "2024.03.26"]
[Round "9"]
[White "teresin05"]
[Black "deepfear"]
[Result "1-0"]
[WhiteElo "2236"]
[BlackElo "1973"]
[TimeControl "180+1"]
[EndTime "15:42:23 PDT"]
[Termination "teresin05 won by resignation"]

1. e4 {[%clk 0:03:00.9]} 1... c5 {[%clk 0:03:00.4]} 2. Nf3 {[%clk 0:03:01]} 2...
g6 {[%clk 0:03:00.9]} 3. c4 {[%clk 0:03:00.7]} 3... Bg7 {[%clk 0:02:53.7]} 4. d4
{[%clk 0:03:01.2]} 4... cxd4 {[%clk 0:02:53.7]} 5. Nxd4 {[%clk 0:03:02.1]} 5...
Nc6 {[%clk 0:02:50.2]} 6. Be3 {[%clk 0:03:02.1]} 6... Qb6 {[%clk 0:02:40.6]} 7.
Nb3 {[%clk 0:03:01.5]} 7... Qc7 {[%clk 0:02:24.8]} 8. Qd2 {[%clk 0:02:59.4]}
8... d6 {[%clk 0:02:04.6]} 9. Nc3 {[%clk 0:02:59.7]} 9... Nf6 {[%clk 0:01:58.1]}
10. f3 {[%clk 0:02:58.6]} 10... a6 {[%clk 0:01:51.4]} 11. Be2 {[%clk 0:02:47.8]}
11... O-O {[%clk 0:01:48.5]} 12. O-O {[%clk 0:02:30]} 12... Be6 {[%clk 0:01:38]}
13. Rac1 {[%clk 0:02:28.9]} 13... Nd7 {[%clk 0:01:30.9]} 14. Nd5 {[%clk
0:02:28.3]} 14... Qd8 {[%clk 0:01:28.1]} 15. Nd4 {[%clk 0:02:21]} 15... Bxd5
{[%clk 0:01:23.4]} 16. cxd5 {[%clk 0:02:12.1]} 16... Nxd4 {[%clk 0:01:23.4]} 17.
Bxd4 {[%clk 0:02:13]} 17... b5 {[%clk 0:01:02.2]} 18. Be3 {[%clk 0:02:10.5]}
18... Rc8 {[%clk 0:00:54.4]} 19. Rc6 {[%clk 0:02:07.4]} 19... Rxc6 {[%clk
0:00:46.1]} 20. dxc6 {[%clk 0:02:08.3]} 20... Nc5 {[%clk 0:00:45.9]} 21. b4
{[%clk 0:02:08.1]} 21... Na4 {[%clk 0:00:43.8]} 22. Rc1 {[%clk 0:02:08.4]} 22...
Qc7 {[%clk 0:00:43.7]} 23. Bd1 {[%clk 0:02:05.6]} 23... Nb6 {[%clk 0:00:38.3]}
24. Bb3 {[%clk 0:02:03.5]} 24... e6 {[%clk 0:00:32.7]} 25. Qf2 {[%clk
0:02:01.7]} 25... Nc8 {[%clk 0:00:29]} 26. a4 {[%clk 0:01:59]} 26... Bb2 {[%clk
0:00:17.9]} 27. Qxb2 {[%clk 0:01:57.8]} 27... Ne7 {[%clk 0:00:15.2]} 28. Bh6
{[%clk 0:01:57]} 1-0

[Event "Late-Titled-Tuesday-Blitz-March-26-2024"]
[Site "Chess.com"]
[Date "2024.03.26"]
[Round "9"]
[White "ahmedkandiliii"]
[Black "ChessQueen"]
[Result "0-1"]
[WhiteElo "2525"]
[BlackElo "2688"]
[TimeControl "180+1"]
[EndTime "15:42:43 PDT"]
[Termination "ChessQueen won on time"]

1. e4 {[%clk 0:02:58.7]} 1... c6 {[%clk 0:03:00.1]} 2. d4 {[%clk 0:02:55.4]}
2... d5 {[%clk 0:03:01]} 3. e5 {[%clk 0:02:54.5]} 3... c5 {[%clk 0:03:01.3]} 4.
dxc5 {[%clk 0:02:53]} 4... e6 {[%clk 0:03:01.5]} 5. a3 {[%clk 0:02:41.2]} 5...
Bxc5 {[%clk 0:03:00.1]} 6. b4 {[%clk 0:02:39.8]} 6... Be7 {[%clk 0:03:00.2]} 7.
Nf3 {[%clk 0:02:35.8]} 7... f6 {[%clk 0:02:58.9]} 8. Bd3 {[%clk 0:02:27.7]} 8...
Nd7 {[%clk 0:02:51]} 9. Bb2 {[%clk 0:02:27.1]} 9... Nh6 {[%clk 0:02:47.8]} 10.
O-O {[%clk 0:02:25.9]} 10... O-O {[%clk 0:02:46.4]} 11. Re1 {[%clk 0:02:25.9]}
11... a5 {[%clk 0:02:41.3]} 12. b5 {[%clk 0:02:18.9]} 12... fxe5 {[%clk
0:02:36.4]} 13. Nxe5 {[%clk 0:02:18.2]} 13... Nxe5 {[%clk 0:02:34.9]} 14. Bxe5
{[%clk 0:02:14.9]} 14... Bc5 {[%clk 0:02:33.5]} 15. Bg3 {[%clk 0:01:48.9]} 15...
Qf6 {[%clk 0:02:25.2]} 16. Nd2 {[%clk 0:01:47.4]} 16... Bxf2+ {[%clk 0:02:23.2]}
17. Bxf2 {[%clk 0:01:48.3]} 17... Qxf2+ {[%clk 0:02:23.5]} 18. Kh1 {[%clk
0:01:48.9]} 18... e5 {[%clk 0:02:05.8]} 19. Rxe5 {[%clk 0:01:27.8]} 19... Ng4
{[%clk 0:02:05.1]} 20. Rh5 {[%clk 0:01:16.8]} 20... g6 {[%clk 0:02:04.4]} 21.
Rg5 {[%clk 0:00:23.9]} 21... Qf4 {[%clk 0:01:55.8]} 22. Rxg4 {[%clk 0:00:07.3]}
22... Bxg4 {[%clk 0:01:56.7]} 23. Qe1 {[%clk 0:00:06.4]} 23... Rae8 {[%clk
0:01:56.6]} 24. Qh4 {[%clk 0:00:05.3]} 24... Qxd2 {[%clk 0:01:53.2]} 25. h3
{[%clk 0:00:02.3]} 25... Bf5 {[%clk 0:01:49.8]} 26. Bxf5 {[%clk 0:00:01.2]}
26... Rxf5 {[%clk 0:01:49.9]} 27. Qh6 {[%clk 0:00:01.7]} 27... Qxh6 {[%clk
0:01:49]} 0-1

[Event "Late-Titled-Tuesday-Blitz-March-26-2024"]
[Site "Chess.com"]
[Date "2024.03.26"]
[Round "9"]
[White "vladislavkovalev"]
[Black "dropstoneDP"]
[Result "0-1"]
[WhiteElo "2879"]
[BlackElo "3011"]
[TimeControl "180+1"]
[EndTime "15:43:08 PDT"]
[Termination "dropstoneDP won by resignation"]

1. e4 {[%clk 0:02:58.6]} 1... e5 {[%clk 0:03:00]} 2. Nf3 {[%clk 0:02:58.3]} 2...
Nf6 {[%clk 0:03:00.3]} 3. Nxe5 {[%clk 0:02:55.1]} 3... d6 {[%clk 0:03:00]} 4.
Nf3 {[%clk 0:02:55.2]} 4... Nxe4 {[%clk 0:03:00]} 5. Nc3 {[%clk 0:02:54.5]} 5...
Nxc3 {[%clk 0:02:59]} 6. dxc3 {[%clk 0:02:55.4]} 6... Be7 {[%clk 0:02:59.3]} 7.
Be3 {[%clk 0:02:53.8]} 7... O-O {[%clk 0:02:58.1]} 8. Qd2 {[%clk 0:02:54.4]}
8... Nd7 {[%clk 0:02:58.2]} 9. O-O-O {[%clk 0:02:54.1]} 9... Nf6 {[%clk
0:02:58.5]} 10. Bd3 {[%clk 0:02:47.6]} 10... Re8 {[%clk 0:02:57.1]} 11. Kb1
{[%clk 0:02:40]} 11... d5 {[%clk 0:02:40.6]} 12. h3 {[%clk 0:02:07.3]} 12... c5
{[%clk 0:02:38.3]} 13. Bg5 {[%clk 0:01:26.3]} 13... c4 {[%clk 0:02:25.5]} 14.
Bxf6 {[%clk 0:01:12.9]} 14... Bxf6 {[%clk 0:02:26.4]} 15. Be2 {[%clk 0:01:10.9]}
15... Qb6 {[%clk 0:02:24.4]} 16. Nd4 {[%clk 0:01:07.3]} 16... Bxd4 {[%clk
0:02:22.9]} 17. cxd4 {[%clk 0:00:46.5]} 17... c3 {[%clk 0:02:23]} 18. Qxc3
{[%clk 0:00:44.9]} 18... Rxe2 {[%clk 0:02:23.2]} 19. Qf3 {[%clk 0:00:31.2]}
19... Re4 {[%clk 0:02:13.5]} 20. Rhe1 {[%clk 0:00:28.5]} 20... Rxe1 {[%clk
0:02:12.9]} 21. Rxe1 {[%clk 0:00:29.4]} 21... Be6 {[%clk 0:02:13.2]} 22. c3
{[%clk 0:00:29]} 22... Qd6 {[%clk 0:02:06.7]} 23. Qe3 {[%clk 0:00:19.5]} 23...
b5 {[%clk 0:02:05.9]} 24. g4 {[%clk 0:00:19.4]} 24... b4 {[%clk 0:02:04.8]} 25.
f4 {[%clk 0:00:17.3]} 25... bxc3 {[%clk 0:01:59.4]} 26. f5 {[%clk 0:00:18]}
26... Bd7 {[%clk 0:01:45]} 27. Qxc3 {[%clk 0:00:18]} 27... h6 {[%clk 0:01:44.8]}
28. Qc5 {[%clk 0:00:14.4]} 28... Qg3 {[%clk 0:01:37.8]} 29. Rd1 {[%clk
0:00:02.8]} 29... Qf3 {[%clk 0:01:36]} 30. Qc4 {[%clk 0:00:01.6]} 30... dxc4
{[%clk 0:01:35]} 0-1

[Event "Late-Titled-Tuesday-Blitz-March-26-2024"]
[Site "Chess.com"]
[Date "2024.03.26"]
[Round "9"]
[White "Konavets"]
[Black "Beca95"]
[Result "1-0"]
[WhiteElo "3151"]
[BlackElo "2956"]
[TimeControl "180+1"]
[EndTime "15:43:16 PDT"]
[Termination "Konavets won by resignation"]

1. e4 {[%clk 0:02:44.5]} 1... d5 {[%clk 0:02:59.9]} 2. exd5 {[%clk 0:02:43]}
2... Qxd5 {[%clk 0:02:59.9]} 3. Nc3 {[%clk 0:02:43.2]} 3... Qd6 {[%clk
0:03:00.1]} 4. Ne4 {[%clk 0:02:43.8]} 4... Qd8 {[%clk 0:02:57.4]} 5. d4 {[%clk
0:02:43.4]} 5... Nf6 {[%clk 0:02:57.4]} 6. Nxf6+ {[%clk 0:02:41.3]} 6... exf6
{[%clk 0:02:57.4]} 7. c3 {[%clk 0:02:41.7]} 7... Bd6 {[%clk 0:02:55.2]} 8. Bd3
{[%clk 0:02:41.5]} 8... c5 {[%clk 0:02:52.3]} 9. Ne2 {[%clk 0:02:09.9]} 9... Nc6
{[%clk 0:02:50.8]} 10. Be3 {[%clk 0:02:05.3]} 10... Qe7 {[%clk 0:02:43.6]} 11.
O-O {[%clk 0:01:55.4]} 11... O-O {[%clk 0:02:43.4]} 12. a3 {[%clk 0:01:47.6]}
12... Rd8 {[%clk 0:02:43]} 13. Qc2 {[%clk 0:01:45.4]} 13... g6 {[%clk
0:02:42.7]} 14. Rfe1 {[%clk 0:01:44.9]} 14... cxd4 {[%clk 0:02:39.4]} 15. cxd4
{[%clk 0:01:41.1]} 15... Qf8 {[%clk 0:02:24.2]} 16. Rad1 {[%clk 0:01:37.6]}
16... Bd7 {[%clk 0:02:23.5]} 17. Qc1 {[%clk 0:01:37.7]} 17... Rac8 {[%clk
0:02:17.4]} 18. Bh6 {[%clk 0:01:32.8]} 18... Qe8 {[%clk 0:02:04.9]} 19. Nc3
{[%clk 0:01:33.1]} 19... Ne7 {[%clk 0:01:56.3]} 20. Ne4 {[%clk 0:01:33.2]} 20...
Nd5 {[%clk 0:01:02.9]} 21. Nxd6 {[%clk 0:01:32.7]} 21... Rxc1 {[%clk 0:00:57.4]}
22. Rxc1 {[%clk 0:01:33.6]} 22... Qxe1+ {[%clk 0:00:55.7]} 23. Rxe1 {[%clk
0:01:34.5]} 23... Bc6 {[%clk 0:00:55.7]} 24. Ne4 {[%clk 0:01:26.4]} 24... Re8
{[%clk 0:00:55.7]} 25. Kf1 {[%clk 0:01:19.3]} 25... f5 {[%clk 0:00:55]} 26. Nc3
{[%clk 0:01:19.2]} 26... Rd8 {[%clk 0:00:50.9]} 27. Nxd5 {[%clk 0:01:19]} 27...
Bxd5 {[%clk 0:00:50.8]} 28. f3 {[%clk 0:01:17.9]} 28... Be6 {[%clk 0:00:49.6]}
29. Be3 {[%clk 0:01:17.1]} 29... f6 {[%clk 0:00:49.9]} 30. Rc1 {[%clk
0:01:17.4]} 30... Rd7 {[%clk 0:00:49.5]} 31. Bc4 {[%clk 0:01:17.2]} 31... Kf7
{[%clk 0:00:49.6]} 32. Ke2 {[%clk 0:01:17.3]} 32... b6 {[%clk 0:00:50.1]} 33.
Kd3 {[%clk 0:01:17.5]} 33... Bxc4+ {[%clk 0:00:47.9]} 34. Rxc4 {[%clk
0:01:17.8]} 34... Ke6 {[%clk 0:00:48.7]} 35. a4 {[%clk 0:01:18]} 35... Kd5
{[%clk 0:00:48.9]} 36. a5 {[%clk 0:01:18.6]} 36... g5 {[%clk 0:00:47.5]} 37. a6
{[%clk 0:01:16.8]} 37... f4 {[%clk 0:00:47.1]} 38. Bd2 {[%clk 0:01:17]} 38... h5
{[%clk 0:00:45.5]} 39. b4 {[%clk 0:01:17.5]} 39... h4 {[%clk 0:00:44.1]} 40. h3
{[%clk 0:01:16.9]} 40... Ke6 {[%clk 0:00:43.7]} 41. Rc6+ {[%clk 0:01:13.1]}
41... Ke7 {[%clk 0:00:43.4]} 42. b5 {[%clk 0:01:13.6]} 1-0

[Event "Late-Titled-Tuesday-Blitz-March-26-2024"]
[Site "Chess.com"]
[Date "2024.03.26"]
[Round "9"]
[White "HanSchut"]
[Black "Aram7Adam"]
[Result "0-1"]
[WhiteElo "2276"]
[BlackElo "2417"]
[TimeControl "180+1"]
[EndTime "15:43:22 PDT"]
[Termination "Aram7Adam won on time"]

1. e4 {[%clk 0:03:00.9]} 1... c5 {[%clk 0:02:59.9]} 2. Nf3 {[%clk 0:03:01.3]}
2... Nc6 {[%clk 0:02:59.8]} 3. d4 {[%clk 0:03:01.6]} 3... cxd4 {[%clk
0:03:00.7]} 4. Nxd4 {[%clk 0:03:02.1]} 4... Nf6 {[%clk 0:03:01.6]} 5. Nc3 {[%clk
0:03:02.5]} 5... d6 {[%clk 0:03:01.9]} 6. Bg5 {[%clk 0:03:01.3]} 6... e6 {[%clk
0:02:57.7]} 7. f4 {[%clk 0:02:59.5]} 7... h6 {[%clk 0:02:51.5]} 8. Bxf6 {[%clk
0:02:56.7]} 8... Qxf6 {[%clk 0:02:51.1]} 9. Nxc6 {[%clk 0:02:47.9]} 9... bxc6
{[%clk 0:02:52]} 10. Qf3 {[%clk 0:02:45.5]} 10... d5 {[%clk 0:02:40.9]} 11. exd5
{[%clk 0:02:19.5]} 11... cxd5 {[%clk 0:02:38.2]} 12. Bb5+ {[%clk 0:02:14.5]}
12... Bd7 {[%clk 0:02:37.4]} 13. O-O-O {[%clk 0:02:01.3]} 13... Bd6 {[%clk
0:02:10.6]} 14. Bxd7+ {[%clk 0:01:39.8]} 14... Kxd7 {[%clk 0:02:10.3]} 15. g3
{[%clk 0:01:36.4]} 15... Rab8 {[%clk 0:02:08.1]} 16. Qd3 {[%clk 0:01:08.6]}
16... Rhc8 {[%clk 0:01:53.8]} 17. Na4 {[%clk 0:00:30.6]} 17... Rc4 {[%clk
0:01:43.4]} 18. b3 {[%clk 0:00:27.2]} 18... Ba3+ {[%clk 0:01:40.4]} 19. Kd2
{[%clk 0:00:27.3]} 19... Rd4 {[%clk 0:01:39.6]} 20. Ke3 {[%clk 0:00:14.1]} 20...
Rxd3+ {[%clk 0:01:38.5]} 21. Rxd3 {[%clk 0:00:13.9]} 21... Rb4 {[%clk
0:01:34.3]} 22. Rhd1 {[%clk 0:00:10.6]} 22... Re4+ {[%clk 0:01:30]} 23. Kf3
{[%clk 0:00:10.9]} 23... Qf5 {[%clk 0:01:24.5]} 24. c4 {[%clk 0:00:10.4]} 24...
Qh5+ {[%clk 0:01:22.1]} 25. Kg2 {[%clk 0:00:06.7]} 25... Re2+ {[%clk 0:01:21.2]}
26. Kf1 {[%clk 0:00:05.8]} 26... Qxh2 {[%clk 0:01:19.3]} 27. cxd5 {[%clk
0:00:04.5]} 27... exd5 {[%clk 0:01:20.2]} 28. Rxd5+ {[%clk 0:00:04.3]} 28... Ke6
{[%clk 0:01:19.7]} 29. Re5+ {[%clk 0:00:04.1]} 29... Rxe5 {[%clk 0:01:19.4]} 30.
fxe5 {[%clk 0:00:05]} 30... Kxe5 {[%clk 0:01:19.6]} 31. Re1+ {[%clk 0:00:02.1]}
31... Kf5 {[%clk 0:01:19.3]} 0-1

[Event "Late-Titled-Tuesday-Blitz-March-26-2024"]
[Site "Chess.com"]
[Date "2024.03.26"]
[Round "9"]
[White "eljanov"]
[Black "mishanick"]
[Result "0-1"]
[WhiteElo "2905"]
[BlackElo "3049"]
[TimeControl "180+1"]
[EndTime "15:43:29 PDT"]
[Termination "mishanick won by resignation"]

1. d4 {[%clk 0:03:00.9]} 1... Nf6 {[%clk 0:02:48.4]} 2. Bf4 {[%clk 0:03:00.2]}
2... d5 {[%clk 0:02:48.4]} 3. e3 {[%clk 0:02:59.9]} 3... c5 {[%clk 0:02:49]} 4.
c3 {[%clk 0:02:56.7]} 4... Nc6 {[%clk 0:02:48.8]} 5. Nd2 {[%clk 0:02:57.3]} 5...
Qb6 {[%clk 0:02:45]} 6. Qb3 {[%clk 0:02:57]} 6... e6 {[%clk 0:02:44.3]} 7. Ngf3
{[%clk 0:02:51.7]} 7... c4 {[%clk 0:02:44.9]} 8. Qc2 {[%clk 0:02:46.7]} 8... Nh5
{[%clk 0:02:39.9]} 9. Bg5 {[%clk 0:02:36.4]} 9... h6 {[%clk 0:02:27.2]} 10. Bh4
{[%clk 0:02:36.7]} 10... g5 {[%clk 0:02:22.7]} 11. Bg3 {[%clk 0:02:36.1]} 11...
g4 {[%clk 0:02:20.9]} 12. Ng1 {[%clk 0:02:22.1]} 12... Be7 {[%clk 0:02:12.4]}
13. Ne2 {[%clk 0:02:11.8]} 13... Nxg3 {[%clk 0:02:12]} 14. hxg3 {[%clk
0:02:11.6]} 14... Bg5 {[%clk 0:02:08.9]} 15. Nf4 {[%clk 0:02:06.1]} 15... Bd7
{[%clk 0:01:56.9]} 16. Be2 {[%clk 0:01:49.2]} 16... f5 {[%clk 0:01:55.6]} 17. b3
{[%clk 0:01:48.4]} 17... cxb3 {[%clk 0:01:54.1]} 18. axb3 {[%clk 0:01:43.2]}
18... a5 {[%clk 0:01:33.9]} 19. Qb2 {[%clk 0:01:26.5]} 19... Kf7 {[%clk
0:01:28.4]} 20. c4 {[%clk 0:01:18.3]} 20... Nb4 {[%clk 0:01:25.9]} 21. Nb1
{[%clk 0:01:12.3]} 21... Bxf4 {[%clk 0:01:05.3]} 22. gxf4 {[%clk 0:01:12.1]}
22... h5 {[%clk 0:00:57.7]} 23. g3 {[%clk 0:01:07.8]} 23... dxc4 {[%clk
0:00:40.5]} 24. O-O {[%clk 0:00:52.6]} 24... cxb3 {[%clk 0:00:35.1]} 25. Qxb3
{[%clk 0:00:48.3]} 25... h4 {[%clk 0:00:35.4]} 26. Nc3 {[%clk 0:00:47.3]} 26...
hxg3 {[%clk 0:00:34.8]} 27. fxg3 {[%clk 0:00:47.6]} 27... Bc6 {[%clk 0:00:35.2]}
28. d5 {[%clk 0:00:37.7]} 28... Qxe3+ {[%clk 0:00:34.1]} 29. Rf2 {[%clk
0:00:36.4]} 29... Nxd5 {[%clk 0:00:33.5]} 0-1

[Event "Late-Titled-Tuesday-Blitz-March-26-2024"]
[Site "Chess.com"]
[Date "2024.03.26"]
[Round "9"]
[White "Kildepiotr"]
[Black "ahkashefi2800"]
[Result "1-0"]
[WhiteElo "2736"]
[BlackElo "2610"]
[TimeControl "180+1"]
[EndTime "15:43:32 PDT"]
[Termination "Kildepiotr won on time"]

1. Nf3 {[%clk 0:03:00.9]} 1... d5 {[%clk 0:02:00.3]} 2. g3 {[%clk 0:02:59]} 2...
c6 {[%clk 0:02:00.3]} 3. Bg2 {[%clk 0:02:58.9]} 3... Nf6 {[%clk 0:02:00.4]} 4.
O-O {[%clk 0:02:59.6]} 4... Bf5 {[%clk 0:01:59.8]} 5. c4 {[%clk 0:02:59.3]} 5...
e6 {[%clk 0:01:59.2]} 6. cxd5 {[%clk 0:02:59.6]} 6... exd5 {[%clk 0:01:58.7]} 7.
d3 {[%clk 0:03:00.2]} 7... Be7 {[%clk 0:01:58.6]} 8. Qb3 {[%clk 0:03:00.5]} 8...
Qb6 {[%clk 0:01:57.4]} 9. Qc2 {[%clk 0:03:01.2]} 9... O-O {[%clk 0:01:56.8]} 10.
Nc3 {[%clk 0:03:01.6]} 10... Nbd7 {[%clk 0:01:55.1]} 11. e4 {[%clk 0:03:01.3]}
11... dxe4 {[%clk 0:01:50.8]} 12. dxe4 {[%clk 0:03:02.2]} 12... Bg6 {[%clk
0:01:50.2]} 13. Be3 {[%clk 0:03:02.8]} 13... Qa6 {[%clk 0:01:38.6]} 14. Nh4
{[%clk 0:02:57.6]} 14... Bc5 {[%clk 0:01:35.1]} 15. Nxg6 {[%clk 0:02:55.8]}
15... hxg6 {[%clk 0:01:33.5]} 16. Rfe1 {[%clk 0:02:53.6]} 16... Bxe3 {[%clk
0:01:32.4]} 17. Rxe3 {[%clk 0:02:54.5]} 17... Ne5 {[%clk 0:01:32.4]} 18. h3
{[%clk 0:02:49.9]} 18... Rad8 {[%clk 0:01:27.3]} 19. Re2 {[%clk 0:02:40.8]}
19... Rd7 {[%clk 0:01:19.9]} 20. f4 {[%clk 0:02:40.5]} 20... Nd3 {[%clk
0:01:12]} 21. e5 {[%clk 0:02:34.7]} 21... Nb4 {[%clk 0:01:10.5]} 22. Qa4 {[%clk
0:02:30.1]} 22... Nfd5 {[%clk 0:01:03.4]} 23. Qxa6 {[%clk 0:02:29.6]} 23... Nxa6
{[%clk 0:01:00]} 24. Nxd5 {[%clk 0:02:24.1]} 24... cxd5 {[%clk 0:00:58.7]} 25.
Rd1 {[%clk 0:02:24.7]} 25... Rfd8 {[%clk 0:00:55.9]} 26. e6 {[%clk 0:02:14.6]}
26... fxe6 {[%clk 0:00:53.9]} 27. Rxe6 {[%clk 0:02:15.5]} 27... Kf7 {[%clk
0:00:53.6]} 28. Re5 {[%clk 0:02:12.6]} 28... d4 {[%clk 0:00:53.9]} 29. Kf2
{[%clk 0:02:09.1]} 29... b6 {[%clk 0:00:49.6]} 30. Bc6 {[%clk 0:01:52.4]} 30...
Rd6 {[%clk 0:00:36.9]} 31. Bb5 {[%clk 0:01:50.9]} 31... Nc5 {[%clk 0:00:33.5]}
32. Bc4+ {[%clk 0:01:50.3]} 32... Kf6 {[%clk 0:00:25.6]} 33. g4 {[%clk
0:01:50.5]} 33... g5 {[%clk 0:00:25.3]} 34. Rf5+ {[%clk 0:01:31.4]} 34... Kg6
{[%clk 0:00:08.4]} 35. Rxg5+ {[%clk 0:01:31.4]} 35... Kf6 {[%clk 0:00:04.5]} 36.
Kf3 {[%clk 0:01:25.7]} 1-0